[Event "Titled Tuesday Blitz May 4 2021"]
[White "Noboa Silva, Kevin"]
[Black "Karavaeva, Olga"]
[WhiteFideId "3618471"]
[BlackFideId "4124111"]
[WhiteElo "2161"]
[BlackElo "2105"]
[Result "1/2-1/2"]
[Round "11"]
[TimeControl "180+1"]
[Date "2021.05.04"]
[WhiteClock "0:00:05"]
[BlackClock "0:00:11"]

1. d4 {[%clk 0:03:00]}  d5 {[%clk 0:02:59]} 2. c4 {[%clk 0:03:00]}  e6 {[%clk 0:02:59]} 3. Nc3 {[%clk 0:02:59]}  c6 {[%clk 0:02:59]} 4. e3 {[%clk 0:02:57]}  Nf6 {[%clk 0:02:59]} 5. Qc2 {[%clk 0:02:56]}  Nbd7 {[%clk 0:02:59]} 6. Nf3 {[%clk 0:02:55]}  Bd6 {[%clk 0:02:59]} 7. Bd3 {[%clk 0:02:54]}  O-O {[%clk 0:02:58]} 8. b3 {[%clk 0:02:52]}  dxc4 {[%clk 0:02:58]} 9. Bxc4 {[%clk 0:02:50]}  e5 {[%clk 0:02:57]} 10. dxe5 {[%clk 0:02:46]}  Nxe5 {[%clk 0:02:58]} 11. Nxe5 {[%clk 0:02:46]}  Bxe5 {[%clk 0:02:59]} 12. Bb2 {[%clk 0:02:46]}  Qc7 {[%clk 0:02:58]} 13. Rd1 {[%clk 0:02:43]}  Bg4 {[%clk 0:02:46]} 14. f3 {[%clk 0:02:42]}  Bh5 {[%clk 0:02:43]} 15. Bd3 {[%clk 0:02:29]}  Bxh2 {[%clk 0:02:41]} 16. Ke2 {[%clk 0:02:26]}  Rfe8 {[%clk 0:02:33]} 17. Ne4 {[%clk 0:02:23]}  Nxe4 {[%clk 0:02:26]} 18. Bxe4 {[%clk 0:02:23]}  Bg6 {[%clk 0:02:20]} 19. Bxg6 {[%clk 0:02:19]}  hxg6 {[%clk 0:02:20]} 20. Qc3 {[%clk 0:02:17]}  Be5 {[%clk 0:02:13]} 21. Qc2 {[%clk 0:02:17]}  Bxb2 {[%clk 0:02:03]} 22. Qxb2 {[%clk 0:02:18]}  Qg3 {[%clk 0:02:02]} 23. Rdg1 {[%clk 0:01:24]}  Rad8 {[%clk 0:01:59]} 24. Rh3 {[%clk 0:01:20]}  Qg5 {[%clk 0:01:47]} 25. Qc3 {[%clk 0:01:11]}  Rd5 {[%clk 0:01:39]} 26. g4 {[%clk 0:01:04]}  Rc5 {[%clk 0:01:21]} 27. f4 {[%clk 0:00:53]}  Qd5 {[%clk 0:01:09]} 28. Qd3 {[%clk 0:00:48]}  Qxd3+ {[%clk 0:00:55]} 29. Kxd3 {[%clk 0:00:49]}  Rd8+ {[%clk 0:00:54]} 30. Ke4 {[%clk 0:00:47]}  Rd2 {[%clk 0:00:48]} 31. g5 {[%clk 0:00:43]}  Rxa2 {[%clk 0:00:33]} 32. Rgh1 {[%clk 0:00:40]}  Kf8 {[%clk 0:00:33]} 33. Rd1 {[%clk 0:00:39]}  Ke7 {[%clk 0:00:31]} 34. Rh8 {[%clk 0:00:36]}  Rd5 {[%clk 0:00:20]} 35. Rxd5 {[%clk 0:00:31]}  cxd5+ {[%clk 0:00:21]} 36. Kxd5 {[%clk 0:00:31]}  Rb2 {[%clk 0:00:20]} 37. Ra8 {[%clk 0:00:27]}  Rxb3 {[%clk 0:00:19]} 38. Rxa7 {[%clk 0:00:26]}  Rb5+ {[%clk 0:00:18]} 39. Kc4 {[%clk 0:00:23]}  Rb1 {[%clk 0:00:18]} 40. Kd4 {[%clk 0:00:20]}  Kd6 {[%clk 0:00:18]} 41. Ra8 {[%clk 0:00:17]}  Rb4+ {[%clk 0:00:17]} 42. Kd3 {[%clk 0:00:15]}  Rb3+ {[%clk 0:00:15]} 43. Kd4 {[%clk 0:00:14]}  Rb1 {[%clk 0:00:14]} 44. Rg8 {[%clk 0:00:11]}  Rd1+ {[%clk 0:00:13]} 45. Ke4 {[%clk 0:00:11]}  b5 {[%clk 0:00:12]} 46. Rxg7 {[%clk 0:00:11]}  Ke6 {[%clk 0:00:12]} 47. Rg8 {[%clk 0:00:11]}  Rc1 {[%clk 0:00:11]} 48. Rb8 {[%clk 0:00:12]}  Rc4+ {[%clk 0:00:11]} 49. Kd3 {[%clk 0:00:11]}  Rc5 {[%clk 0:00:11]} 50. Kd4 {[%clk 0:00:11]}  Rc4+ {[%clk 0:00:11]} 51. Kd3 {[%clk 0:00:11]}  Rc5 {[%clk 0:00:11]} 52. e4 {[%clk 0:00:11]}  Ke7 {[%clk 0:00:07]} 53. Kd4 {[%clk 0:00:11]}  Rc4+ {[%clk 0:00:07]} 54. Kd5 {[%clk 0:00:11]}  Rc1 {[%clk 0:00:07]} 55. Rxb5 {[%clk 0:00:10]}  Rf1 {[%clk 0:00:07]} 56. Ke5 {[%clk 0:00:09]}  Re1 {[%clk 0:00:06]} 57. Rb7+ {[%clk 0:00:09]}  Ke8 {[%clk 0:00:05]} 58. Ra7 {[%clk 0:00:08]}  Re2 {[%clk 0:00:04]} 59. f5 {[%clk 0:00:08]}  gxf5 {[%clk 0:00:04]} 60. Kxf5 {[%clk 0:00:08]}  Rf2+ {[%clk 0:00:04]} 61. Ke5 {[%clk 0:00:08]}  Rg2 {[%clk 0:00:04]} 62. Kf6 {[%clk 0:00:08]}  Rf2+ {[%clk 0:00:05]} 63. Ke5 {[%clk 0:00:07]}  Rg2 {[%clk 0:00:05]} 64. Kf4 {[%clk 0:00:07]}  Rf2+ {[%clk 0:00:05]} 65. Ke3 {[%clk 0:00:07]}  Rg2 {[%clk 0:00:05]} 66. Ra5 {[%clk 0:00:07]}  Ke7 {[%clk 0:00:05]} 67. Rf5 {[%clk 0:00:07]}  Ke6 {[%clk 0:00:04]} 68. Kd4 {[%clk 0:00:06]}  Rg4 {[%clk 0:00:04]} 69. Rf6+ {[%clk 0:00:06]}  Ke7 {[%clk 0:00:04]} 70. Rf5 {[%clk 0:00:07]}  Ke6 {[%clk 0:00:04]} 71. Ra5 {[%clk 0:00:07]}  Ke7 {[%clk 0:00:03]} 72. Ke3 {[%clk 0:00:07]}  Ke6 {[%clk 0:00:03]} 73. Kf3 {[%clk 0:00:07]}  Rg1 {[%clk 0:00:03]} 74. Kf4 {[%clk 0:00:06]}  Ke7 {[%clk 0:00:03]} 75. Kf5 {[%clk 0:00:06]}  Rf1+ {[%clk 0:00:03]} 76. Ke5 {[%clk 0:00:06]}  Rg1 {[%clk 0:00:03]} 77. Kf4 {[%clk 0:00:05]}  Rf1+ {[%clk 0:00:03]} 78. Kg3 {[%clk 0:00:05]}  Rg1+ {[%clk 0:00:04]} 79. Kf3 {[%clk 0:00:06]}  Rf1+ {[%clk 0:00:04]} 80. Ke2 {[%clk 0:00:06]}  Rg1 {[%clk 0:00:04]} 81. Ke3 {[%clk 0:00:06]}  Rg3+ {[%clk 0:00:04]} 82. Kf4 {[%clk 0:00:06]}  Rg1 {[%clk 0:00:05]} 83. Rf5 {[%clk 0:00:07]}  Rf1+ {[%clk 0:00:05]} 84. Ke5 {[%clk 0:00:07]}  Rg1 {[%clk 0:00:05]} 85. Kd5 {[%clk 0:00:08]}  Rg2 {[%clk 0:00:05]} 86. Re5+ {[%clk 0:00:07]}  Kd7 {[%clk 0:00:05]} 87. Kd4 {[%clk 0:00:05]}  Rg1 {[%clk 0:00:04]} 88. Ke3 {[%clk 0:00:05]}  Kd6 {[%clk 0:00:04]} 89. Rd5+ {[%clk 0:00:05]}  Ke6 {[%clk 0:00:05]} 90. Rf5 {[%clk 0:00:05]}  Rg3+ {[%clk 0:00:04]} 91. Kf4 {[%clk 0:00:05]}  Rg1 {[%clk 0:00:04]} 92. Rf6+ {[%clk 0:00:04]}  Ke7 {[%clk 0:00:05]} 93. e5 {[%clk 0:00:05]}  Rf1+ {[%clk 0:00:05]} 94. Kg4 {[%clk 0:00:06]}  Rg1+ {[%clk 0:00:05]} 95. Kf5 {[%clk 0:00:06]}  Rf1+ {[%clk 0:00:05]} 96. Ke4 {[%clk 0:00:06]}  Re1+ {[%clk 0:00:06]} 97. Kd5 {[%clk 0:00:06]}  Rg1 {[%clk 0:00:06]} 98. g6 {[%clk 0:00:06]}  Rxg6 {[%clk 0:00:06]} 99. Rf1 {[%clk 0:00:04]}  Rg2 {[%clk 0:00:05]} 100. Ra1 {[%clk 0:00:05]}  Rd2+ {[%clk 0:00:05]} 101. Ke4 {[%clk 0:00:05]}  Re2+ {[%clk 0:00:06]} 102. Kf4 {[%clk 0:00:05]}  Rf2+ {[%clk 0:00:06]} 103. Ke3 {[%clk 0:00:05]}  Rh2 {[%clk 0:00:06]} 104. Ra6 {[%clk 0:00:04]}  Rh1 {[%clk 0:00:05]} 105. Rb6 {[%clk 0:00:04]}  Re1+ {[%clk 0:00:05]} 106. Kf4 {[%clk 0:00:04]}  Rf1+ {[%clk 0:00:05]} 107. Ke4 {[%clk 0:00:04]}  Re1+ {[%clk 0:00:06]} 108. Kd4 {[%clk 0:00:04]}  Rd1+ {[%clk 0:00:06]} 109. Kc3 {[%clk 0:00:04]}  Re1 {[%clk 0:00:06]} 110. Kd4 {[%clk 0:00:03]}  Rd1+ {[%clk 0:00:06]} 111. Ke4 {[%clk 0:00:03]}  Re1+ {[%clk 0:00:07]} 112. Kf5 {[%clk 0:00:04]}  Rf1+ {[%clk 0:00:07]} 113. Kg5 {[%clk 0:00:04]}  Rg1+ {[%clk 0:00:07]} 114. Kf4 {[%clk 0:00:05]}  Rf1+ {[%clk 0:00:08]} 115. Kg3 {[%clk 0:00:05]}  Re1 {[%clk 0:00:08]} 116. Rb5 {[%clk 0:00:05]}  Ke6 {[%clk 0:00:07]} 117. Kf4 {[%clk 0:00:06]}  Rf1+ {[%clk 0:00:07]} 118. Ke4 {[%clk 0:00:06]}  Re1+ {[%clk 0:00:07]} 119. Kd4 {[%clk 0:00:06]}  Rd1+ {[%clk 0:00:08]} 120. Ke3 {[%clk 0:00:05]}  Re1+ {[%clk 0:00:08]} 121. Kf4 {[%clk 0:00:05]}  Rf1+ {[%clk 0:00:08]} 122. Kg4 {[%clk 0:00:05]}  Rg1+ {[%clk 0:00:08]} 123. Kf3 {[%clk 0:00:06]}  Re1 {[%clk 0:00:08]} 124. Kf2 {[%clk 0:00:06]}  Rxe5 {[%clk 0:00:08]} 125. Rb8 {[%clk 0:00:05]}  Kf5 {[%clk 0:00:08]} 126. Kf3 {[%clk 0:00:05]}  f6 {[%clk 0:00:08]} 127. Rf8 {[%clk 0:00:04]}  Ra5 {[%clk 0:00:08]} 128. Rb8 {[%clk 0:00:03]}  Ra3+ {[%clk 0:00:08]} 129. Kf2 {[%clk 0:00:04]}  Kf4 {[%clk 0:00:08]} 130. Rb4+ {[%clk 0:00:03]}  Kg5 {[%clk 0:00:08]} 131. Rb5+ {[%clk 0:00:04]}  f5 {[%clk 0:00:09]} 132. Rb4 {[%clk 0:00:04]}  f4 {[%clk 0:00:09]} 133. Rb8 {[%clk 0:00:05]}  Kg4 {[%clk 0:00:10]} 134. Rg8+ {[%clk 0:00:05]}  Kf5 {[%clk 0:00:10]} 135. Rf8+ {[%clk 0:00:04]}  Kg4 {[%clk 0:00:10]} 136. Rg8+ {[%clk 0:00:04]}  Kf5 {[%clk 0:00:11]} 137. Rf8+ {[%clk 0:00:04]}  Kg4 {[%clk 0:00:11]} 138. Rg8+ {[%clk 0:00:05]} 1/2-1/2


[Site "https://www.chess.com"]

[Event "Titled Tuesday Blitz May 4 2021"]
[White "Oliveira, Silvio Eduardo"]
[Black "Ronka, Erik"]
[WhiteFideId "2111560"]
[BlackFideId "505080"]
[WhiteElo "2302"]
[BlackElo "2264"]
[Result "1-0"]
[Round "11"]
[TimeControl "180+1"]
[Date "2021.05.04"]
[WhiteClock "0:00:17"]
[BlackClock "0:00:01"]

1. e4 {[%clk 0:03:00]}  c6 {[%clk 0:02:58]} 2. d4 {[%clk 0:03:00]}  d5 {[%clk 0:02:59]} 3. exd5 {[%clk 0:03:01]}  cxd5 {[%clk 0:02:59]} 4. Bd3 {[%clk 0:03:02]}  Nf6 {[%clk 0:03:00]} 5. c3 {[%clk 0:03:02]}  Nc6 {[%clk 0:03:00]} 6. Bf4 {[%clk 0:03:02]}  Bg4 {[%clk 0:03:01]} 7. Qb3 {[%clk 0:03:02]}  Qc8 {[%clk 0:03:01]} 8. Nd2 {[%clk 0:03:02]}  Bh5 {[%clk 0:03:02]} 9. Ngf3 {[%clk 0:03:02]}  Bg6 {[%clk 0:03:03]} 10. Be2 {[%clk 0:02:35]}  e6 {[%clk 0:03:03]} 11. Ne5 {[%clk 0:02:34]}  Nxe5 {[%clk 0:02:52]} 12. dxe5 {[%clk 0:02:31]}  Nd7 {[%clk 0:02:52]} 13. O-O {[%clk 0:02:24]}  Nc5 {[%clk 0:02:25]} 14. Bb5+ {[%clk 0:02:17]}  Nd7 {[%clk 0:02:09]} 15. c4 {[%clk 0:02:16]}  a6 {[%clk 0:02:09]} 16. Ba4 {[%clk 0:02:15]}  dxc4 {[%clk 0:02:04]} 17. Bxd7+ {[%clk 0:02:14]}  Qxd7 {[%clk 0:01:56]} 18. Nxc4 {[%clk 0:02:14]}  Bc5 {[%clk 0:01:25]} 19. Rfd1 {[%clk 0:02:09]}  Qb5 {[%clk 0:00:53]} 20. Nd6+ {[%clk 0:01:25]}  Bxd6 {[%clk 0:00:50]} 21. exd6 {[%clk 0:01:26]}  Qxb3 {[%clk 0:00:45]} 22. axb3 {[%clk 0:01:17]}  Kd7 {[%clk 0:00:44]} 23. Rac1 {[%clk 0:01:17]}  Rac8 {[%clk 0:00:42]} 24. Rc7+ {[%clk 0:01:14]}  Rxc7 {[%clk 0:00:34]} 25. dxc7+ {[%clk 0:01:15]}  Kc8 {[%clk 0:00:33]} 26. b4 {[%clk 0:01:08]}  f6 {[%clk 0:00:23]} 27. Bd6 {[%clk 0:01:07]}  Re8 {[%clk 0:00:23]} 28. f4 {[%clk 0:01:05]}  e5 {[%clk 0:00:23]} 29. fxe5 {[%clk 0:01:05]}  fxe5 {[%clk 0:00:24]} 30. Kf2 {[%clk 0:00:55]}  Bc2 {[%clk 0:00:25]} 31. Rd2 {[%clk 0:00:54]}  Bb1 {[%clk 0:00:19]} 32. Ke3 {[%clk 0:00:55]}  e4 {[%clk 0:00:19]} 33. Bf4 {[%clk 0:00:52]}  Bd3 {[%clk 0:00:19]} 34. Rd1 {[%clk 0:00:51]}  h6 {[%clk 0:00:17]} 35. h4 {[%clk 0:00:51]}  g5 {[%clk 0:00:17]} 36. hxg5 {[%clk 0:00:51]}  hxg5 {[%clk 0:00:18]} 37. Bg3 {[%clk 0:00:51]}  Re6 {[%clk 0:00:18]} 38. Rh1 {[%clk 0:00:50]}  Re8 {[%clk 0:00:18]} 39. Rh7 {[%clk 0:00:48]}  b6 {[%clk 0:00:18]} 40. Rg7 {[%clk 0:00:48]}  a5 {[%clk 0:00:17]} 41. bxa5 {[%clk 0:00:47]}  bxa5 {[%clk 0:00:18]} 42. Rxg5 {[%clk 0:00:47]}  Kb7 {[%clk 0:00:18]} 43. Rxa5 {[%clk 0:00:47]}  Rg8 {[%clk 0:00:18]} 44. Bf4 {[%clk 0:00:39]}  Rxg2 {[%clk 0:00:09]} 45. Ra7+ {[%clk 0:00:39]}  Kxa7 {[%clk 0:00:08]} 46. c8=Q {[%clk 0:00:39]}  Re2+ {[%clk 0:00:08]} 47. Kd4 {[%clk 0:00:39]}  Rxb2 {[%clk 0:00:08]} 48. Qc7+ {[%clk 0:00:36]}  Rb7 {[%clk 0:00:09]} 49. Qa5+ {[%clk 0:00:36]}  Ba6 {[%clk 0:00:09]} 50. Be3 {[%clk 0:00:32]}  Rb5 {[%clk 0:00:05]} 51. Kxe4+ {[%clk 0:00:27]}  Kb7 {[%clk 0:00:06]} 52. Qd8 {[%clk 0:00:21]}  Rb1 {[%clk 0:00:02]} 53. Qd7+ {[%clk 0:00:20]}  Kb8 {[%clk 0:00:02]} 54. Bf4+ {[%clk 0:00:20]}  Ka8 {[%clk 0:00:03]} 55. Qd8+ {[%clk 0:00:18]}  Ka7 {[%clk 0:00:03]} 56. Be3+ {[%clk 0:00:18]}  Kb7 {[%clk 0:00:03]} 57. Qd5+ {[%clk 0:00:17]}  Kb8 {[%clk 0:00:03]} 58. Bf4+ {[%clk 0:00:17]}  Ka7 {[%clk 0:00:01]} 59. Be3+ {[%clk 0:00:17]} 1-0


[Site "https://www.chess.com"]

[Event "Titled Tuesday Blitz May 4 2021"]
[White "Onufrienko, Vladislav"]
[Black "Karttunen, Mika"]
[WhiteFideId "13804332"]
[BlackFideId "502081"]
[WhiteElo "1661"]
[BlackElo "2343"]
[Result "0-1"]
[Round "11"]
[TimeControl "180+1"]
[Date "2021.05.04"]
[WhiteClock "0:00:05"]
[BlackClock "0:00:18"]

1. e4 {[%clk 0:03:00]}  e5 {[%clk 0:02:55]} 2. Nf3 {[%clk 0:03:00]}  Nc6 {[%clk 0:02:51]} 3. Bc4 {[%clk 0:03:00]}  Bc5 {[%clk 0:02:47]} 4. b4 {[%clk 0:02:59]}  Bxb4 {[%clk 0:02:39]} 5. c3 {[%clk 0:02:59]}  Be7 {[%clk 0:02:37]} 6. d4 {[%clk 0:02:57]}  Na5 {[%clk 0:02:35]} 7. Be2 {[%clk 0:02:57]}  d6 {[%clk 0:02:23]} 8. dxe5 {[%clk 0:02:36]}  dxe5 {[%clk 0:02:21]} 9. Qa4+ {[%clk 0:02:32]}  c6 {[%clk 0:02:19]} 10. Nxe5 {[%clk 0:02:32]}  Nf6 {[%clk 0:02:15]} 11. O-O {[%clk 0:02:31]}  O-O {[%clk 0:02:14]} 12. Nd2 {[%clk 0:02:26]}  Qc7 {[%clk 0:02:07]} 13. f4 {[%clk 0:02:20]}  b5 {[%clk 0:02:00]} 14. Qc2 {[%clk 0:02:19]}  Bd6 {[%clk 0:01:50]} 15. Ndf3 {[%clk 0:02:14]}  Nb7 {[%clk 0:01:07]} 16. h3 {[%clk 0:01:54]}  Nc5 {[%clk 0:01:04]} 17. Bd3 {[%clk 0:01:32]}  Nxd3 {[%clk 0:00:55]} 18. Qxd3 {[%clk 0:01:33]}  Rd8 {[%clk 0:00:51]} 19. Qc2 {[%clk 0:01:28]}  Bb7 {[%clk 0:00:41]} 20. Re1 {[%clk 0:01:14]}  c5 {[%clk 0:00:39]} 21. c4 {[%clk 0:01:08]}  a6 {[%clk 0:00:38]} 22. Bb2 {[%clk 0:01:06]}  b4 {[%clk 0:00:34]} 23. Rad1 {[%clk 0:01:03]}  Nh5 {[%clk 0:00:33]} 24. Qc1 {[%clk 0:00:47]}  f6 {[%clk 0:00:33]} 25. Nd3 {[%clk 0:00:46]}  Bxf4 {[%clk 0:00:28]} 26. Nxf4 {[%clk 0:00:40]}  Qxf4 {[%clk 0:00:26]} 27. Qc2 {[%clk 0:00:28]}  Rxd1 {[%clk 0:00:24]} 28. Qxd1 {[%clk 0:00:28]}  Bxe4 {[%clk 0:00:24]} 29. Bc1 {[%clk 0:00:21]}  Bxf3 {[%clk 0:00:20]} 30. Qd7 {[%clk 0:00:13]}  Qd4+ {[%clk 0:00:17]} 31. Qxd4 {[%clk 0:00:12]}  cxd4 {[%clk 0:00:18]} 32. gxf3 {[%clk 0:00:12]}  Rc8 {[%clk 0:00:18]} 33. Rd1 {[%clk 0:00:07]}  Rxc4 {[%clk 0:00:19]} 34. Bb2 {[%clk 0:00:07]}  Nf4 {[%clk 0:00:19]} 35. Kf2 {[%clk 0:00:06]}  Ne6 {[%clk 0:00:19]} 36. Rd2 {[%clk 0:00:05]}  Kf7 {[%clk 0:00:18]} 37. Kg3 {[%clk 0:00:05]}  g5 {[%clk 0:00:18]} 38. Kg4 {[%clk 0:00:05]}  Kg6 {[%clk 0:00:18]} 39. Kg3 {[%clk 0:00:04]}  h5 {[%clk 0:00:18]} 40. Kf2 {[%clk 0:00:05]}  h4 {[%clk 0:00:18]} 41. Ke2 {[%clk 0:00:05]}  Kf5 {[%clk 0:00:18]} 42. Kd3 {[%clk 0:00:05]}  Rc5 {[%clk 0:00:18]} 0-1


[Site "https://www.chess.com"]

[Event "Titled Tuesday Blitz May 4 2021"]
[White "Pajeken, Jakob Leon"]
[Black "Shukhman, Anna"]
[WhiteFideId "12942839"]
[BlackFideId "54180058"]
[WhiteElo "2024"]
[BlackElo "1628"]
[Result "1-0"]
[Round "11"]
[TimeControl "180+1"]
[Date "2021.05.04"]
[WhiteClock "0:02:01"]
[BlackClock "0:00:48"]

1. d4 {[%clk 0:03:00]}  f5 {[%clk 0:02:58]} 2. Nf3 {[%clk 0:03:01]}  Nf6 {[%clk 0:02:58]} 3. g3 {[%clk 0:03:02]}  g6 {[%clk 0:02:59]} 4. Bg2 {[%clk 0:03:03]}  Bg7 {[%clk 0:02:59]} 5. O-O {[%clk 0:03:04]}  O-O {[%clk 0:03:00]} 6. b3 {[%clk 0:03:05]}  d6 {[%clk 0:03:00]} 7. Bb2 {[%clk 0:03:05]}  Qe8 {[%clk 0:03:00]} 8. c4 {[%clk 0:03:05]}  Nbd7 {[%clk 0:02:57]} 9. d5 {[%clk 0:02:57]}  e5 {[%clk 0:02:47]} 10. dxe6 {[%clk 0:02:56]}  Qxe6 {[%clk 0:02:46]} 11. Nc3 {[%clk 0:02:54]}  c6 {[%clk 0:02:44]} 12. Qc2 {[%clk 0:02:52]}  Nc5 {[%clk 0:02:41]} 13. Rad1 {[%clk 0:02:50]}  Nce4 {[%clk 0:02:39]} 14. Nxe4 {[%clk 0:02:49]}  Nxe4 {[%clk 0:02:39]} 15. Bxg7 {[%clk 0:02:47]}  Kxg7 {[%clk 0:02:38]} 16. Nd4 {[%clk 0:02:48]}  Qe5 {[%clk 0:02:28]} 17. e3 {[%clk 0:02:43]}  a6 {[%clk 0:02:18]} 18. Ne2 {[%clk 0:02:38]}  Bd7 {[%clk 0:02:01]} 19. Rd4 {[%clk 0:02:32]}  c5 {[%clk 0:01:59]} 20. Rd5 {[%clk 0:02:31]}  Qe7 {[%clk 0:01:59]} 21. Rfd1 {[%clk 0:02:30]}  Bc6 {[%clk 0:01:58]} 22. Bxe4 {[%clk 0:02:30]}  fxe4 {[%clk 0:01:56]} 23. Rxd6 {[%clk 0:02:28]}  Rad8 {[%clk 0:01:53]} 24. Rxd8 {[%clk 0:02:26]}  Rxd8 {[%clk 0:01:53]} 25. Rxd8 {[%clk 0:02:26]}  Qxd8 {[%clk 0:01:54]} 26. Nc3 {[%clk 0:02:27]}  b5 {[%clk 0:01:49]} 27. Nxe4 {[%clk 0:02:19]}  bxc4 {[%clk 0:01:46]} 28. Qxc4 {[%clk 0:02:17]}  Qd1+ {[%clk 0:01:43]} 29. Kg2 {[%clk 0:02:16]}  Qb1 {[%clk 0:01:36]} 30. f3 {[%clk 0:02:13]}  Qxa2+ {[%clk 0:01:34]} 31. Kh3 {[%clk 0:02:11]}  Qf2 {[%clk 0:01:31]} 32. Qc3+ {[%clk 0:02:09]}  Kh6 {[%clk 0:01:27]} 33. Qf6 {[%clk 0:02:04]}  Qf1+ {[%clk 0:01:22]} 34. Kg4 {[%clk 0:02:02]}  Bd7+ {[%clk 0:01:17]} 35. Kf4 {[%clk 0:02:01]}  Qa1 {[%clk 0:00:48]} 1-0


[Site "https://www.chess.com"]

[Event "Titled Tuesday Blitz May 4 2021"]
[White "PattyCastillo"]
[Black "Pasti, Aron"]
[BlackFideId "785857"]
[WhiteElo "2038"]
[BlackElo "2082"]
[Result "1-0"]
[Round "11"]
[TimeControl "180+1"]
[Date "2021.05.04"]
[WhiteClock "0:01:08"]
[BlackClock "0:01:28"]

1. d4 {[%clk 0:03:00]}  d5 {[%clk 0:02:56]} 2. Nf3 {[%clk 0:02:58]}  Nf6 {[%clk 0:02:49]} 3. e3 {[%clk 0:02:58]}  Bf5 {[%clk 0:02:48]} 4. c4 {[%clk 0:02:57]}  e6 {[%clk 0:02:48]} 5. Qb3 {[%clk 0:02:56]}  Qc8 {[%clk 0:02:44]} 6. Nc3 {[%clk 0:02:55]}  c6 {[%clk 0:02:37]} 7. Bd2 {[%clk 0:02:53]}  Nbd7 {[%clk 0:02:36]} 8. Rc1 {[%clk 0:02:52]}  Be7 {[%clk 0:02:35]} 9. cxd5 {[%clk 0:02:46]}  exd5 {[%clk 0:02:32]} 10. e4 {[%clk 0:02:27]}  Bxe4 {[%clk 0:02:28]} 11. Nxe4 {[%clk 0:02:24]}  Nxe4 {[%clk 0:02:28]} 12. Bd3 {[%clk 0:02:23]}  Nxd2 {[%clk 0:02:27]} 13. Nxd2 {[%clk 0:02:19]}  O-O {[%clk 0:02:27]} 14. O-O {[%clk 0:02:19]}  Bd6 {[%clk 0:02:25]} 15. Nf3 {[%clk 0:02:14]}  Nf6 {[%clk 0:02:22]} 16. Rfe1 {[%clk 0:02:12]}  Qd7 {[%clk 0:02:21]} 17. Ne5 {[%clk 0:02:09]}  Bxe5 {[%clk 0:02:18]} 18. dxe5 {[%clk 0:02:09]}  Ng4 {[%clk 0:02:11]} 19. h3 {[%clk 0:02:02]}  Nh6 {[%clk 0:02:10]} 20. Qc2 {[%clk 0:01:58]}  Rfe8 {[%clk 0:02:01]} 21. Bxh7+ {[%clk 0:01:55]}  Kh8 {[%clk 0:01:59]} 22. Bd3 {[%clk 0:01:47]}  Ng8 {[%clk 0:01:56]} 23. Re3 {[%clk 0:01:41]}  Ne7 {[%clk 0:01:55]} 24. Rce1 {[%clk 0:01:39]}  Qe6 {[%clk 0:01:45]} 25. Qa4 {[%clk 0:01:23]}  b5 {[%clk 0:01:31]} 26. Qh4+ {[%clk 0:01:21]}  Qh6 {[%clk 0:01:29]} 27. Qxh6+ {[%clk 0:01:08]}  gxh6 {[%clk 0:01:30]} 28. e6 {[%clk 0:01:08]}  fxe6 {[%clk 0:01:28]} 29. Rxe6 {[%clk 0:01:08]} 1-0


[Site "https://www.chess.com"]

[Event "Titled Tuesday Blitz May 4 2021"]
[White "Perez Gormaz, Matias"]
[Black "Mekhitarian, Krikor Sevag"]
[WhiteFideId "3406342"]
[BlackFideId "2107660"]
[WhiteElo "2414"]
[BlackElo "2598"]
[Result "1/2-1/2"]
[Round "11"]
[TimeControl "180+1"]
[Date "2021.05.04"]
[WhiteClock "0:00:06"]
[BlackClock "0:00:04"]

1. e4 {[%clk 0:03:00]}  c5 {[%clk 0:02:55]} 2. Nf3 {[%clk 0:03:00]}  d6 {[%clk 0:02:55]} 3. g3 {[%clk 0:03:00]}  Nc6 {[%clk 0:02:54]} 4. Bg2 {[%clk 0:03:00]}  g6 {[%clk 0:02:55]} 5. O-O {[%clk 0:03:01]}  Bg7 {[%clk 0:02:55]} 6. c3 {[%clk 0:03:01]}  e5 {[%clk 0:02:55]} 7. a3 {[%clk 0:03:00]}  a5 {[%clk 0:02:52]} 8. a4 {[%clk 0:03:00]}  Nge7 {[%clk 0:02:52]} 9. Na3 {[%clk 0:03:00]}  O-O {[%clk 0:02:50]} 10. d3 {[%clk 0:03:01]}  h6 {[%clk 0:02:41]} 11. Nb5 {[%clk 0:02:57]}  Be6 {[%clk 0:02:38]} 12. Nd2 {[%clk 0:02:58]}  d5 {[%clk 0:02:33]} 13. exd5 {[%clk 0:02:57]}  Bxd5 {[%clk 0:02:34]} 14. Nc4 {[%clk 0:02:52]}  Bxg2 {[%clk 0:02:19]} 15. Kxg2 {[%clk 0:02:52]}  Rb8 {[%clk 0:02:08]} 16. f4 {[%clk 0:02:47]}  Qd5+ {[%clk 0:01:47]} 17. Qf3 {[%clk 0:02:37]}  Rfd8 {[%clk 0:01:27]} 18. fxe5 {[%clk 0:02:28]}  Qxd3 {[%clk 0:01:18]} 19. Nbd6 {[%clk 0:01:13]}  Qxf3+ {[%clk 0:01:12]} 20. Rxf3 {[%clk 0:01:11]}  Rf8 {[%clk 0:00:57]} 21. Be3 {[%clk 0:00:54]}  b6 {[%clk 0:00:56]} 22. Re1 {[%clk 0:00:50]}  Nd5 {[%clk 0:00:48]} 23. Bc1 {[%clk 0:00:46]}  Nc7 {[%clk 0:00:45]} 24. h4 {[%clk 0:00:41]}  Ne6 {[%clk 0:00:44]} 25. Ref1 {[%clk 0:00:37]}  Ned8 {[%clk 0:00:39]} 26. Bf4 {[%clk 0:00:32]}  Ne6 {[%clk 0:00:37]} 27. Bc1 {[%clk 0:00:32]}  Ncd8 {[%clk 0:00:38]} 28. Ne4 {[%clk 0:00:29]}  Rb7 {[%clk 0:00:34]} 29. Rd1 {[%clk 0:00:29]}  Nc6 {[%clk 0:00:30]} 30. Nf6+ {[%clk 0:00:26]}  Kh8 {[%clk 0:00:24]} 31. Rd7 {[%clk 0:00:16]}  Rfb8 {[%clk 0:00:20]} 32. Nd6 {[%clk 0:00:14]}  Rxd7 {[%clk 0:00:08]} 33. Nxd7 {[%clk 0:00:15]}  Ra8 {[%clk 0:00:07]} 34. Nxb6 {[%clk 0:00:13]}  Rb8 {[%clk 0:00:05]} 35. Nbc4 {[%clk 0:00:13]}  Kg8 {[%clk 0:00:03]} 36. Nxf7 {[%clk 0:00:13]}  Rf8 {[%clk 0:00:03]} 37. Nxh6+ {[%clk 0:00:12]}  Bxh6 {[%clk 0:00:03]} 38. Bxh6 {[%clk 0:00:13]}  Rb8 {[%clk 0:00:02]} 39. Rf6 {[%clk 0:00:11]}  Ncd8 {[%clk 0:00:02]} 40. Rxg6+ {[%clk 0:00:10]}  Kf7 {[%clk 0:00:02]} 41. Rf6+ {[%clk 0:00:11]}  Ke7 {[%clk 0:00:02]} 42. Bg5 {[%clk 0:00:11]}  Kd7 {[%clk 0:00:02]} 43. Be3 {[%clk 0:00:10]}  Nc6 {[%clk 0:00:02]} 44. g4 {[%clk 0:00:06]}  Ne7 {[%clk 0:00:03]} 45. h5 {[%clk 0:00:07]}  Nd5 {[%clk 0:00:03]} 46. Kf3 {[%clk 0:00:07]}  Nxf6 {[%clk 0:00:03]} 47. exf6 {[%clk 0:00:08]}  Rg8 {[%clk 0:00:03]} 48. Ke4 {[%clk 0:00:07]}  Rxg4+ {[%clk 0:00:02]} 49. Kd5 {[%clk 0:00:06]}  Nc7+ {[%clk 0:00:02]} 50. Kxc5 {[%clk 0:00:05]}  Ne6+ {[%clk 0:00:02]} 51. Kd5 {[%clk 0:00:05]}  Nc7+ {[%clk 0:00:03]} 52. Kc5 {[%clk 0:00:05]}  Ne6+ {[%clk 0:00:03]} 53. Kd5 {[%clk 0:00:05]}  Nc7+ {[%clk 0:00:04]} 54. Kc5 {[%clk 0:00:06]} 1/2-1/2


[Site "https://www.chess.com"]